fUSD/lending_fUSD_20260115
["ID","MTS","AMOUNT","RATE_DAILY","PERIOD"]
[402060490,1768501856063,-653.95,0.00035616,10]
[402060491,1768501856072,-500.0,0.00035616,10]
[402060492,1768501856081,-500.0,0.00035616,10]
[402060493,1768501856091,-500.0,0.00035616,10]
[402060494,1768501856100,-500.0,0.00035616,10]
[402060495,1768501856110,-500.0,0.00035616,10]
[402060496,1768501856119,-500.0,0.00035616,10]
[402060497,1768501856209,-500.0,0.00035616,10]
[402060498,1768501856218,-561.99346868,0.00035616,10]
[402060499,1768501856229,-500.0,0.00035616,10]
[402060500,1768501856239,-500.0,0.00035616,10]
[402060501,1768501856248,-500.0,0.00035616,10]
[402060502,1768501856258,-500.0,0.00035616,10]
[402060503,1768501856267,-500.0,0.00035616,10]
[402060504,1768501856276,-606.46,0.00035616,10]
[402060505,1768501856285,-500.0,0.00035616,10]
[402060506,1768501856294,-500.0,0.00035616,10]
[402060507,1768501856303,-500.0,0.00035616,10]
[402060508,1768501856313,-500.0,0.00035616,10]
[402060509,1768501856322,-500.0,0.00035616,10]
[402060510,1768501856331,-500.0,0.00035616,10]
[402060511,1768501856341,-500.0,0.00035616,10]
[402060512,1768501856351,-500.0,0.00035616,10]
[402060513,1768501856360,-500.0,0.00035616,10]
[402060514,1768501856369,-500.0,0.00035616,10]
[402060515,1768501856378,-500.0,0.00035616,10]
[402060516,1768501856388,-500.0,0.00035616,10]
[402060517,1768501856397,-568.43,0.00035616,10]
[402060518,1768501856406,-500.0,0.00035616,10]
[402060519,1768501856415,-675.08,0.00035616,10]
[402060520,1768501856424,-500.0,0.00035616,10]
[402060521,1768501856434,-1969.54,0.00035616,10]
[402060522,1768501856443,-509.48799845,0.00035616,10]
[402060523,1768501856456,-863.81,0.00035616,10]
[402060524,1768501856466,-500.0,0.00035616,10]
[402060525,1768501856476,-500.0,0.00035616,10]
[402060526,1768501856487,-500.0,0.00035616,10]
[402060527,1768501856496,-500.0,0.00035616,10]
[402060528,1768501856506,-500.0,0.00035616,10]
[402060529,1768501856516,-500.0,0.00035616,10]
[402060530,1768501856527,-500.0,0.00035616,10]
[402060531,1768501856537,-500.0,0.00035616,10]
[402060532,1768501856546,-500.0,0.00035616,2]
[402060533,1768501856555,-725.17,0.00035616,10]
[402060534,1768501856566,-539.13,0.00035616,10]
[402060535,1768501856575,-500.0,0.00035616,10]
[402060536,1768501856585,-500.0,0.00035616,10]
[402060537,1768501856594,-500.0,0.00035616,2]
[402060538,1768501856604,-698.53,0.00035616,10]
[402060539,1768501856614,-500.0,0.00035616,10]
[402060540,1768501856623,-500.0,0.00035616,10]
[402060541,1768501856633,-500.0,0.00035616,10]
[402060542,1768501856643,-500.0,0.00035616,10]
[402060543,1768501856653,-500.0,0.00035616,10]
[402060544,1768501856665,-234.40821468,0.00035616,10]
[402060545,1768501856676,-515.09060099,0.00035616,10]
[402060546,1768501856686,-500.0,0.00035616,10]
[402060547,1768501856695,-622.26,0.00035616,10]
[402060548,1768501856705,-500.0,0.00035616,10]
[402060549,1768501856715,-500.0,0.00035616,10]
[402060550,1768501856724,-500.0,0.00035616,10]
[402060551,1768501856734,-500.0,0.00035616,10]
[402060552,1768501856744,-806.22,0.00035616,10]
[402060553,1768501856753,-500.0,0.00035616,10]
[402060554,1768501856763,-1317.17,0.00035616,10]
[402060555,1768501856773,-635.51,0.00035616,10]
[402060556,1768501856783,-500.0,0.00035616,10]
[402060557,1768501856794,-641.38,0.00035616,10]
[402060558,1768501856803,-559.59,0.00035616,10]
[402060559,1768501856813,-531.96303153,0.00035616,10]
[402060560,1768501856822,-500.0,0.00035616,10]
[402060561,1768501856831,-798.56,0.00035616,10]
[402060562,1768501856841,-801.77,0.00035616,10]
[402060563,1768501856851,-675.47,0.00035616,10]
[402060564,1768501856860,-759.47,0.00035616,10]
[402060565,1768501856869,-500.0,0.00035616,10]
[402060566,1768501856878,-500.0,0.00035616,10]
[402060567,1768501856887,-500.0,0.00035616,10]
[402060568,1768501856896,-500.0,0.00035616,10]
[402060569,1768501856905,-500.0,0.00035616,10]
[402060570,1768501856914,-544.93831273,0.00035616,10]
[402060571,1768501856924,-500.0,0.00035616,10]
[402060572,1768501856933,-519.58013009,0.00035616,10]
[402060573,1768501856942,-500.0,0.00035616,10]
[402060574,1768501856952,-500.0,0.00035616,10]
[402060575,1768501856962,-500.0,0.00035616,10]
[402060576,1768501856972,-587.56,0.00035616,10]
[402060577,1768501856983,-500.0,0.00035616,10]
[402060578,1768501856992,-500.0,0.00035616,10]
[402060579,1768501857001,-3440.76,0.00035616,10]
[402060580,1768501857011,-500.0,0.00035616,10]
[402060581,1768501857020,-500.0,0.00035616,10]
[402060582,1768501857030,-1020.42,0.00035616,10]
[402060583,1768501857040,-500.0,0.00035616,10]
[402060584,1768501857051,-4028.85,0.00035616,10]
[402060585,1768501857060,-804.65,0.00035616,10]
[402060586,1768501857070,-533.28406069,0.00035616,10]
[402060587,1768501857080,-687.52,0.00035616,10]
[402060588,1768501857090,-944.6,0.00035616,10]
[402060589,1768501857099,-500.0,0.00035616,10]
[402060590,1768501857109,-500.0,0.00035616,10]
[402060591,1768501857118,-1304.29,0.00035616,10]
[402060592,1768501857128,-500.0,0.00035616,10]
[402060593,1768501857138,-500.0,0.00035616,10]
[402060594,1768501857149,-379.99688331,0.00035616,10]
[402060595,1768501857159,-572.36,0.00035616,10]
[402060596,1768501857169,-958.29,0.00035616,10]
[402060597,1768501857179,-500.0,0.00035616,120]
[402060598,1768501857189,-500.0,0.00035616,10]
[402060599,1768501857199,-2570.44,0.00035616,10]
[402060600,1768501857209,-573.85323138,0.00035616,10]
[402060601,1768501857219,-500.0,0.00035616,10]
[402060602,1768501857230,-490.7866183,0.00035616,10]
[402060603,1768501857241,-500.0,0.00035616,10]
[402060604,1768501857251,-512.64595139,0.00035616,10]
[402060605,1768501857261,-500.0,0.00035616,10]
[402060606,1768501857271,-500.0,0.00035616,10]
[402060607,1768501857284,-854.88,0.00035616,10]
[402060608,1768501857294,-731.52,0.00035616,10]
[402060609,1768501857306,-500.0,0.00035616,10]
[402060610,1768501857315,-500.0,0.00035616,10]
[402060611,1768501857325,-151.0,0.00035616,31]
[402060612,1768501857335,-593.5606909,0.00035616,10]
[402060613,1768501857345,-500.0,0.00035616,10]
[402060614,1768501857356,-500.0,0.00035616,10]
[402060615,1768501857366,-500.0,0.00035616,10]
[402060616,1768501857376,-500.0,0.00035616,10]
[402060617,1768501857386,-600.62082133,0.00035616,10]
[402060618,1768501857395,-1126.37,0.00035616,10]
[402060619,1768501857406,-500.0,0.00035616,10]
[402060620,1768501857416,-500.0,0.00035616,10]
[402060621,1768501857427,-1728.18,0.00035616,10]
[402060622,1768501857437,-500.0,0.00035616,10]
[402060623,1768501857452,-563.45,0.00035616,10]
[402060624,1768501857463,-500.0,0.00035616,10]
[402060625,1768501857474,-500.0,0.00035616,10]
[402060626,1768501857487,-500.0,0.00035616,10]
[402060627,1768501857497,-963.2,0.00035616,10]
[402060628,1768501857507,-500.0,0.00035616,10]
[402060629,1768501857516,-647.26,0.00035616,10]
[402060630,1768501857527,-500.0,0.00035616,10]
[402060631,1768501857537,-500.0,0.00035616,10]
[402060632,1768501857547,-500.0,0.00035616,10]
[402060633,1768501857557,-500.0,0.00035616,10]
[402060634,1768501857567,-500.0,0.00035616,10]
[402060635,1768501857578,-500.0,0.00035616,10]
[402060636,1768501857588,-500.0,0.00035616,10]
[402060637,1768501857598,-500.0,0.00035616,10]
[402060638,1768501857607,-599.34,0.00035616,10]
[402060639,1768501857617,-500.0,0.00035616,10]
[402060640,1768501857627,-500.0,0.00035616,10]
[402060641,1768501857636,-503.28,0.00035616,10]
[402060642,1768501857646,-1063.15,0.00035616,10]
[402060643,1768501857656,-500.0,0.00035616,10]
[402060644,1768501857666,-500.0,0.00035616,10]
[402060645,1768501857676,-500.0,0.00035616,10]
[402060646,1768501857685,-312.51985344,0.00035616,10]
[402060647,1768501857695,-517.94894216,0.00035616,10]
[402060648,1768501857704,-500.0,0.00035616,10]
[402060649,1768501857714,-500.0,0.00035616,10]
[402060650,1768501857724,-500.0,0.00035616,10]
[402060651,1768501857737,-500.0,0.00035616,10]
[402060652,1768501857747,-528.49,0.00035616,10]
[402060653,1768501857756,-500.0,0.00035616,10]
[402060654,1768501857766,-500.0,0.00035616,10]
[402060655,1768501857776,-686.31,0.00035616,10]
[402060656,1768501857785,-500.0,0.00035616,10]
[402060657,1768501857796,-500.0,0.00035616,10]
[402060658,1768501857806,-556.12538538,0.00035616,10]
[402060659,1768501857815,-500.0,0.00035616,10]
[402060660,1768501857824,-611.0,0.00035616,10]
[402060661,1768501857833,-500.0,0.00035616,10]
[402060662,1768501857843,-500.0,0.00035616,10]
[402060663,1768501857852,-906.22,0.00035616,10]
[402060664,1768501857862,-500.0,0.00035616,10]
[402060665,1768501857871,-500.0,0.00035616,10]
[402060666,1768501857880,-500.0,0.00035616,10]
[402060667,1768501857889,-500.0,0.00035616,10]
[402060668,1768501857898,-885.19,0.00035616,10]
[402060669,1768501857908,-516.75,0.00035616,10]
[402060670,1768501857917,-500.0,0.00035616,10]
[402060671,1768501857927,-500.0,0.00035616,10]
[402060672,1768501857936,-1043.06,0.00035616,10]
[402060673,1768501857945,-500.0,0.00035616,10]
[402060674,1768501857955,-500.0,0.00035616,10]
[402060675,1768501857964,-500.0,0.00035616,10]
[402060676,1768501857974,-779.19,0.00035616,10]
[402060677,1768501857985,-500.0,0.00035616,10]
[402060678,1768501857994,-500.0,0.00035616,10]
[402060679,1768501858003,-848.33,0.00035616,10]
[402060680,1768501858012,-1009.7,0.00035616,10]
[402060681,1768501858021,-500.0,0.00035616,10]
[402060682,1768501858030,-500.0,0.00035616,10]
[402060683,1768501858039,-720.07,0.00035616,10]
[402060684,1768501858050,-500.0,0.00035616,10]
[402060685,1768501858059,-500.0,0.00035616,10]
[402060686,1768501858070,-500.0,0.00035616,10]
[402060687,1768501858080,-500.0,0.00035616,10]
[402060688,1768501858089,-500.0,0.00035616,10]
[402060689,1768501858104,-500.0,0.00035616,10]
[402060690,1768501858114,-794.51,0.00035616,10]
[402060691,1768501858124,-500.0,0.00035616,10]
[402060692,1768501858137,-500.0,0.00035616,10]
[402060693,1768501858147,-500.0,0.00035616,10]
[402060694,1768501858157,-645.02664879,0.00035616,10]
[402060695,1768501858167,-500.0,0.00035616,10]
[402060696,1768501858176,-556.68860751,0.00035616,10]
[402060697,1768501858185,-794.58,0.00035616,10]
[402060698,1768501858194,-500.0,0.00035616,10]
[402060699,1768501858204,-500.0,0.00035616,10]
[402060700,1768501858214,-500.0,0.00035616,10]
[402060701,1768501858224,-500.0,0.00035616,10]
[402060702,1768501858235,-500.0,0.00035616,10]
[402060703,1768501858244,-500.0,0.00035616,10]
[402060704,1768501858253,-500.0,0.00035616,10]
[402060705,1768501858263,-500.0,0.00035616,10]
[402060706,1768501858272,-613.18,0.00035616,10]
[402060707,1768501858284,-500.0,0.00035616,10]
[402060708,1768501858294,-500.0,0.00035616,10]
[402060709,1768501858303,-500.0,0.00035616,10]
[402060710,1768501858316,-500.0,0.00035616,10]
[402060711,1768501858326,-597.75,0.00035616,10]
[402060712,1768501858336,-151.0,0.00035616,31]
[402060713,1768501858345,-500.0,0.00035616,10]
[402060714,1768501858355,-500.0,0.00035616,10]
[402060715,1768501858367,-502.99543485,0.00035616,10]
[402060716,1768501858384,-500.0,0.00035616,2]
[402060717,1768501858394,-500.0,0.00035616,10]
[402060718,1768501858403,-500.0,0.00035616,10]
[402060719,1768501858415,-506.89207522,0.00035616,10]
[402060720,1768501858434,-500.0,0.00035616,10]
[402060721,1768501858443,-500.0,0.00035616,10]
[402060722,1768501858456,-703.51227023,0.00035616,10]
[402060723,1768501859142,-19.54772977,0.00035616,10]
[402060724,1768501859152,-500.0,0.00035616,10]
[402060725,1768501859162,-1121.84,0.00035616,10]
[402060726,1768501859171,-745.39,0.00035616,10]
[402060727,1768501859181,-957.45,0.00035616,10]
[402060728,1768501859190,-500.0,0.00035616,10]
[402060729,1768501859200,-500.0,0.00035616,10]
[402060730,1768501859209,-500.0,0.00035616,10]
[402060731,1768501859219,-177.25699106,0.00035616,10]
[402060732,1768501859232,-329.6795373,0.00035616,10]
[402060733,1768501859242,-60.21746823,0.00035616,10]
[402060734,1768501859253,-443.4506406,0.00035616,10]
[402060735,1768501859266,-117.65189117,0.00035616,10]
[402060736,1768501859276,-500.0,0.00035616,10]
[402060737,1768501859286,-500.0,0.00035616,10]
[402060738,1768501859295,-506.88171485,0.00035616,10]
[402060739,1768501859305,-500.0,0.00035616,10]
[402060740,1768501859314,-539.68209018,0.00035616,10]
[402060741,1768501859324,-2091.67,0.00035616,10]
[402060742,1768501859334,-285.30765358,0.00035616,10]
[402060743,1768501859344,-500.0,0.00035616,10]
[402060744,1768501859353,-500.0,0.00035616,10]
[402060745,1768501859363,-500.0,0.00035616,10]
[402060746,1768501859373,-660.28,0.00035616,10]
[402060747,1768501859383,-500.0,0.00035616,10]
[402060748,1768501859392,-3935.03,0.00035616,10]
[402060749,1768501859402,-1189.19,0.00035616,10]
[402060750,1768501859412,-268.14174567,0.00035616,10]
[402060751,1768501859422,-500.0,0.00035616,10]
[402060752,1768501859431,-500.0,0.00035616,10]
[402060753,1768501859441,-504.85,0.00035616,10]
[402060754,1768501859454,-500.0,0.00035616,10]
[402060755,1768501859464,-500.0,0.00035616,10]
[402060756,1768501859474,-500.0,0.00035616,10]
[402060757,1768501859486,-500.0,0.00035616,10]
[402060758,1768501859496,-2585.65,0.00035616,10]
[402060759,1768501859506,-500.0,0.00035616,10]
[402060760,1768501859515,-500.0,0.00035616,10]
[402060761,1768501859527,-500.0,0.00035616,10]
[402060762,1768501859537,-500.0,0.00035616,10]
[402060763,1768501859546,-535.54,0.00035616,10]
[402060764,1768501859557,-688.02,0.00035616,10]
[402060765,1768501859567,-540.9824732,0.00035616,10]
[402060766,1768501859577,-500.0,0.00035616,10]
[402060767,1768501859587,-573.38,0.00035616,10]
[402060768,1768501859597,-500.0,0.00035616,10]
[402060769,1768501859607,-500.0,0.00035616,10]
[402060770,1768501859617,-3735.52,0.00035616,10]
[402060771,1768501859627,-500.0,0.00035616,10]
[402060772,1768501859637,-1259.08,0.00035616,10]
[402060773,1768501859646,-522.80048335,0.00035616,10]
[402060774,1768501859656,-500.0,0.00035616,10]
[402060775,1768501859666,-1182.71,0.00035616,10]
[402060776,1768501859676,-1968.72,0.00035616,10]
[402060777,1768501859686,-500.0,0.00035616,10]
[402060778,1768501859695,-500.0,0.00035616,10]
[402060779,1768501859705,-500.0,0.00035616,10]
[402060780,1768501859714,-957.87,0.00035616,10]
[402060781,1768501859723,-500.0,0.00035616,5]
[402060782,1768501859735,-618.81525913,0.00035616,10]
[402060783,1768501859745,-500.0,0.00035616,10]
[402060784,1768501859755,-500.0,0.00035616,10]
[402060785,1768501859764,-500.0,0.00035616,10]
[402060786,1768501859774,-544.52,0.00035616,10]
[402060787,1768501859784,-500.0,0.00035616,10]
[402060788,1768501859796,-306.13219889,0.00035616,10]
[402060789,1768501859806,-500.0,0.00035616,10]
[402060790,1768501859816,-1000.0,0.00035616,10]
[402060791,1768501859825,-992.04,0.00035616,10]
[402060792,1768501859835,-500.0,0.00035616,10]
[402060793,1768501859844,-1355.83,0.00035616,10]
[402060794,1768501859855,-820.23,0.00035616,10]
[402060795,1768501859865,-500.0,0.00035616,10]
[402060796,1768501859874,-857.34,0.00035616,10]
[402060797,1768501859884,-957.79,0.00035616,10]
[402060798,1768501859893,-500.0,0.00035616,10]
[402060799,1768501859903,-500.0,0.00035616,10]
[402060800,1768501859913,-641.76,0.00035616,10]
[402060801,1768501859922,-500.0,0.00035616,10]
[402060802,1768501859932,-500.0,0.00035616,10]
[402060803,1768501859942,-521.78,0.00035616,10]
[402060804,1768501859952,-974.79,0.00035616,10]
[402060805,1768501859961,-619.6,0.00035616,10]
[402060806,1768501859971,-2527.54046663,0.00035616,10]
[402060807,1768501859982,-806.7,0.00035616,10]
[402060808,1768501859992,-507.35,0.00035616,10]
[402060809,1768501860001,-500.0,0.00035616,10]
[402060810,1768501860011,-500.0,0.00035616,10]
[402060811,1768501860021,-2172.65,0.00035616,10]
[402060812,1768501860031,-575.3,0.00035616,10]
[402060813,1768501860040,-500.0,0.00035616,10]
[402060814,1768501860051,-500.0,0.00035616,10]
[402060815,1768501860061,-581.133326,0.00035616,7]
[402060816,1768501860070,-500.0,0.00035616,10]
[402060817,1768501860081,-500.0,0.00035616,10]
[402060818,1768501860091,-500.0,0.00035616,10]
[402060819,1768501860100,-581.133326,0.00035616,7]
[402060820,1768501860111,-172.20664582,0.00035616,10]
[402060821,1768501860120,-1078.94,0.00035616,10]
[402060822,1768501860131,-581.133326,0.00035616,7]
[402060823,1768501860141,-581.133326,0.00035616,7]
[402060824,1768501860151,-500.0,0.00035616,10]
[402060825,1768501860160,-500.0,0.00035616,10]
[402060826,1768501860170,-500.0,0.00035616,3]
[402060827,1768501860181,-590.76,0.00035616,10]
[402060828,1768501860191,-500.0,0.00035616,10]
[402060829,1768501860201,-2018.05,0.00035616,10]
[402060830,1768501860211,-500.0,0.00035616,10]
[402060831,1768501860221,-500.0,0.00035616,10]
[402060832,1768501860232,-1420.77,0.00035616,10]
[402060833,1768501860242,-828.43,0.00035616,10]
[402060834,1768501860252,-500.0,0.00035616,10]
[402060835,1768501860262,-500.0,0.00035616,10]
[402060836,1768501860272,-151.0,0.00035616,31]
[402060837,1768501860282,-974.6,0.00035616,10]
[402060838,1768501860291,-1417.14,0.00035616,10]
[402060839,1768501860301,-500.0,0.00035616,10]
[402060840,1768501860311,-1227.7,0.00035616,10]
[402060841,1768501860322,-669.5,0.00035616,10]
[402060842,1768501860331,-897.61,0.00035616,10]
[402060843,1768501860341,-500.0,0.00035616,10]
[402060844,1768501860351,-500.0,0.00035616,10]
[402060845,1768501860361,-801.66,0.00035616,10]
[402060846,1768501860371,-500.0,0.00035616,10]
[402060847,1768501860381,-536.13,0.00035616,10]
[402060848,1768501860391,-151.0,0.00035616,31]
[402060849,1768501860400,-685.12,0.00035616,10]
[402060850,1768501860410,-151.0,0.00035616,31]
[402060851,1768501860419,-500.0,0.00035616,10]
[402060852,1768501860429,-500.0,0.00035616,10]
[402060853,1768501860439,-500.0,0.00035616,10]
[402060854,1768501860454,-500.0,0.00035616,10]
[402060855,1768501860465,-500.0,0.00035616,10]
[402060856,1768501860476,-500.0,0.00035616,10]
[402060857,1768501860488,-500.0,0.00035616,10]
[402060858,1768501860497,-500.0,0.00035616,10]
[402060859,1768501860508,-500.0,0.00035616,10]
[402060860,1768501860518,-289.35946357,0.00035616,10]
[402060861,1768501860529,-500.0,0.00035616,5]
[402060862,1768501860539,-896.25,0.00035616,10]
[402060863,1768501860550,-1419.65,0.00035616,10]
[402060864,1768501860560,-500.0,0.00035616,10]
[402060865,1768501860570,-500.0,0.00035616,10]
[402060866,1768501860582,-500.0,0.00035616,10]
[402060867,1768501860592,-748.03,0.00035616,10]
[402060868,1768501860602,-500.0,0.00035616,10]
[402060869,1768501860612,-500.0,0.00035616,10]
[402060870,1768501860622,-500.0,0.00035616,10]
[402060871,1768501860632,-675.98,0.00035616,10]
[402060872,1768501860642,-500.0,0.00035616,10]
[402060873,1768501860652,-500.0,0.00035616,10]
[402060874,1768501860662,-495.44096008,0.00035616,10]
[402060875,1768501860672,-1426.96,0.00035616,10]
[402060876,1768501860683,-500.0,0.00035616,10]
[402060877,1768501860694,-959.98,0.00035616,10]
[402060878,1768501860704,-500.0,0.00035616,10]
[402060879,1768501860714,-500.0,0.00035616,10]
[402060880,1768501860724,-603.87,0.00035616,10]
[402060881,1768501860739,-1257.22,0.00035616,10]
[402060882,1768501860749,-749.42,0.00035616,10]
[402060883,1768501860759,-667.07,0.00035616,10]
[402060884,1768501860770,-500.0,0.00035616,10]
[402060885,1768501860780,-500.0,0.00035616,10]
[402060886,1768501860790,-500.0,0.00035616,10]
[402060887,1768501860799,-500.0,0.00035616,10]
[402060888,1768501860809,-500.0,0.00035616,10]
[402060889,1768501860819,-500.0,0.00035616,10]
[402060890,1768501860829,-500.0,0.00035616,10]
[402060891,1768501860847,-500.0,0.00035616,10]
[402060892,1768501860862,-549.3,0.00035616,10]
[402060893,1768501860872,-1125.37,0.00035616,10]
[402060894,1768501860883,-500.0,0.00035616,10]
[402060895,1768501860893,-745.51,0.00035616,10]
[402060896,1768501860902,-500.0,0.00035616,10]
[402060897,1768501860912,-526.83017494,0.00035616,10]
[402060898,1768501860922,-500.0,0.00035616,10]
[402060899,1768501860932,-500.0,0.00035616,10]
[402060900,1768501860942,-500.0,0.00035616,10]
[402060901,1768501861306,-1596.33,0.00035616,10]
[402060902,1768501861316,-500.0,0.00035616,10]
[402060903,1768501861327,-500.0,0.00035616,10]
[402060904,1768501861337,-500.0,0.00035616,10]
[402060905,1768501861347,-500.0,0.00035616,10]
[402060906,1768501861356,-513.84819323,0.00035616,10]
[402060907,1768501861366,-3377.3,0.00035616,10]
[402060908,1768501861376,-1543.58,0.00035616,10]
[402060909,1768501861385,-1346.75,0.00035616,10]
[402060910,1768501861395,-717.45,0.00035616,10]
[402060911,1768501861405,-827.88,0.00035616,10]
[402060912,1768501861414,-500.0,0.00035616,10]
[402060913,1768501861424,-500.0,0.00035616,10]
[402060914,1768501861433,-540.1,0.00035616,10]
[402060915,1768501861443,-1143.05,0.00035616,10]
[402060916,1768501861457,-500.0,0.00035616,10]
[402060917,1768501861467,-569.07,0.00035616,10]
[402060918,1768501861476,-500.0,0.00035616,10]
[402060919,1768501861486,-500.0,0.00035616,10]
[402060920,1768501861497,-500.0,0.00035616,10]
[402060921,1768501861508,-667.13,0.00035616,10]
[402060922,1768501861519,-500.0,0.00035616,10]
[402060923,1768501861529,-500.0,0.00035616,10]
[402060924,1768501861545,-500.0,0.00035616,10]
[402060925,1768501861556,-520.22,0.00035616,10]
[402060926,1768501861566,-500.0,0.00035616,10]
[402060927,1768501861575,-541.4,0.00035616,10]
[402060928,1768501861589,-527.48196519,0.00035616,10]
[402060929,1768501861600,-500.0,0.00035616,10]
[402060930,1768501861610,-673.17,0.00035616,10]
[402060931,1768501861620,-847.44,0.00035616,10]
[402060932,1768501861631,-500.0,0.00035616,10]
[402060933,1768501861641,-4070.97,0.00035616,10]
[402060934,1768501861652,-500.0,0.00035616,10]
[402060935,1768501861662,-500.0,0.00035616,10]
[402060936,1768501861672,-500.0,0.00035616,10]
[402060937,1768501861682,-500.0,0.00035616,10]
[402060938,1768501861692,-500.0,0.00035616,10]
[402060939,1768501861703,-749.58,0.00035616,10]
[402060940,1768501861712,-500.0,0.00035616,10]
[402060941,1768501861722,-500.0,0.00035616,10]
[402060942,1768501861733,-1222.38,0.00035616,10]
[402060943,1768501861743,-699.86,0.00035616,10]
[402060944,1768501861752,-500.0,0.00035616,10]
[402060945,1768501861762,-500.0,0.00035616,10]
[402060946,1768501861771,-500.0,0.00035616,10]
[402060947,1768501861782,-500.0,0.00035616,2]
[402060948,1768501861792,-500.0,0.00035616,10]
[402060949,1768501861802,-500.0,0.00035616,10]
[402060950,1768501861811,-500.0,0.00035616,10]
[402060951,1768501861821,-500.0,0.00035616,10]
[402060952,1768501861831,-500.0,0.00035616,10]
[402060953,1768501861841,-500.0,0.00035616,10]
[402060954,1768501861851,-1732.03,0.00035616,10]
[402060955,1768501861861,-404.92992998,0.00035616,10]
[402060956,1768501861870,-547.13,0.00035616,10]
[402060957,1768501861880,-500.0,0.00035616,10]
[402060958,1768501861889,-500.0,0.00035616,10]
[402060959,1768501861900,-500.0,0.00035616,10]
[402060960,1768501861909,-500.0,0.00035616,10]
[402060961,1768501861919,-500.0,0.00035616,10]
[402060962,1768501861928,-500.0,0.00035616,10]
[402060963,1768501861939,-500.0,0.00035616,10]
[402060964,1768501861952,-600.0,0.00035616,2]
[402060965,1768501861963,-1502.7,0.00035645,7]
[402060966,1768501861973,-532.29023544,0.0003573,120]
[402060967,1768501861984,-200.0,0.00035733,7]
[402060968,1768501861994,-1000.0,0.00035833,7]
[402060969,1768501862005,-262.265889,0.00035838,31]
[402060970,1768501862015,-151.0,0.00035887,14]
[402060971,1768501862025,-500.0,0.00035889,10]
[402060972,1768501862040,-500.0,0.0003589,10]
[402060973,1768501862050,-500.0,0.0003589,10]
[402060974,1768501862060,-500.0,0.0003589,10]
[402060975,1768501862070,-510.54663526,0.0003589,10]
[402060976,1768501862081,-515.06,0.0003589,10]
[402060977,1768501862091,-500.0,0.0003589,10]
[402060978,1768501862102,-500.0,0.0003589,10]
[402060979,1768501862112,-500.0,0.0003589,10]
[402060980,1768501862123,-500.0,0.0003589,10]
[402060981,1768501862133,-500.0,0.0003589,10]
[402060982,1768501862144,-500.0,0.0003589,10]
[402060983,1768501862154,-555.06,0.0003589,10]
[402060984,1768501862164,-500.0,0.0003589,10]
[402060985,1768501862175,-571.0,0.0003589,10]
[402060986,1768501862184,-500.0,0.0003589,10]
[402060987,1768501862195,-720.39,0.0003589,10]
[402060988,1768501862204,-793.83,0.0003589,10]
[402060989,1768501862215,-500.0,0.0003589,10]